bitfinex-derivatives/quotes_BTCF0:USTF0_20250716
["timestamp","ask_amount","ask_price","bid_price","bid_amount"]
[1752683069991,0.59619,119250.0,119240.0,1.24799549]
[1752683070401,0.59619,119250.0,119240.0,1.25902858]
[1752683070796,0.59919,119250.0,119240.0,1.25902858]
[1752683071604,0.59919,119250.0,119240.0,1.327017]
[1752683073094,0.781852,119250.0,119240.0,0.90145032]
[1752683073295,0.802952,119250.0,119240.0,0.90145032]
[1752683073499,0.823192,119250.0,119240.0,0.90145032]
[1752683073704,0.65553,119250.0,119240.0,0.90145032]
[1752683073903,0.63533,119250.0,119240.0,0.90145032]
[1752683074400,0.62938,119250.0,119240.0,0.90145032]
[1752683074903,0.00204,119250.0,119240.0,1.34193568]
[1752683075104,0.00204,119250.0,119240.0,1.93549568]
[1752683075399,4e-05,119250.0,119240.0,1.93549568]
[1752683078099,0.59348,119260.0,119250.0,0.352092]
[1752683078299,0.59368,119260.0,119250.0,0.77765868]
[1752683078504,0.0002,119260.0,119250.0,0.77765868]
[1752683079097,0.1678479,119260.0,119250.0,0.77765868]
[1752683079396,0.0002,119260.0,119250.0,0.82226289]
[1752683080905,0.1702779,119260.0,119250.0,0.82226289]
[1752683081304,0.0002,119260.0,119250.0,0.82226289]
[1752683081810,0.0022,119260.0,119250.0,0.82226289]
[1752683085512,0.1698479,119260.0,119250.0,0.82226289]
[1752683085711,0.0022,119260.0,119250.0,0.82226289]
[1752683087813,0.1698479,119260.0,119250.0,0.82226289]
[1752683088200,0.1723079,119260.0,119250.0,0.77765868]
[1752683088401,0.2079979,119260.0,119250.0,0.82231859]
[1752683088609,0.2423379,119260.0,119250.0,0.29675191]
[1752683088911,0.2423379,119260.0,119250.0,0.252092]
[1752683089208,0.8212379,119260.0,119250.0,0.82231859]
[1752683089404,0.03573,119260.0,119250.0,0.82231859]
[1752683089607,0.5977,119260.0,119250.0,0.82231859]
[1752683090008,0.00466,119260.0,119250.0,0.82231859]
[1752683090203,0.0022,119260.0,119250.0,0.77765868]
[1752683090802,0.0022,119260.0,119250.0,0.83733339]
[1752683091202,0.0022,119260.0,119250.0,0.77765868]
[1752683092313,0.0002,119260.0,119250.0,0.77765868]
[1752683093711,0.0002,119260.0,119250.0,0.83733339]
[1752683093914,0.0002,119260.0,119250.0,0.83933339]
[1752683095010,0.0002,119260.0,119250.0,1.43221339]
[1752683096011,0.00266,119260.0,119250.0,0.77965868]
[1752683096212,0.00266,119260.0,119250.0,0.8392614]
[1752683098005,0.0002,119260.0,119250.0,0.8392614]
[1752683099209,0.0002,119260.0,119250.0,0.77965868]
[1752683100415,0.0002,119260.0,119250.0,0.8393375]
[1752683101508,0.0002,119260.0,119250.0,0.77965868]
[1752683103526,4e-05,119280.0,119270.0,0.37241308]
[1752683103711,4e-05,119280.0,119270.0,1.28322692]
[1752683103917,4e-05,119280.0,119270.0,0.43209356]
[1752683104121,0.1701198,119280.0,119270.0,0.79797976]
[1752683104322,0.1701198,119280.0,119270.0,0.37241308]
[1752683104527,0.1701198,119280.0,119270.0,0.79797976]
[1752683104715,0.2401498,119280.0,119270.0,0.79797976]
[1752683104918,4e-05,119280.0,119270.0,0.79797976]
[1752683105323,0.2011898,119280.0,119270.0,0.37241308]
[1752683105622,0.2058098,119280.0,119270.0,0.79797976]
[1752683105818,0.7937498,119280.0,119270.0,0.79797976]
[1752683106121,0.7983698,119280.0,119270.0,0.79797976]
[1752683106324,0.8185698,119280.0,119270.0,0.85766024]
[1752683107316,0.0025,119280.0,119270.0,0.85766024]
[1752683107522,0.59256,119280.0,119270.0,0.85766024]
[1752683108724,0.59256,119280.0,119270.0,0.79797976]
[1752683108924,0.59256,119280.0,119270.0,2.29797976]
[1752683109123,4e-05,119280.0,119270.0,2.35766024]
[1752683109922,0.1676598,119280.0,119270.0,2.35766024]
[1752683110124,0.66571648,119280.0,119270.0,0.08270048]
[1752683110422,0.2330439,119270.0,119260.0,0.29056245]
[1752683110622,0.84958194,119270.0,119260.0,1.83239019]
[1752683111521,0.84958194,119270.0,119260.0,0.33239239]
[1752683111719,0.84958194,119270.0,119260.0,0.27271191]
[1752683112024,0.84958194,119270.0,119260.0,0.23295191]
[1752683112330,1.94284462,119270.0,119260.0,0.05980675]
[1752683112728,1.94284462,119270.0,119260.0,0.22745465]
[1752683112920,1.51727794,119270.0,119260.0,0.22845465]
[1752683113125,1.51727794,119270.0,119260.0,0.26024451]
[1752683113321,1.51727794,119270.0,119260.0,0.72557119]
[1752683113322,0.75710194,119270.0,119260.0,0.72557119]
[1752683113626,1.34954184,119270.0,119260.0,0.68076085]
[1752683113827,1.34954184,119270.0,119260.0,0.72556821]
[1752683114229,1.34954184,119270.0,119260.0,0.82556821]
[1752683114427,1.33540184,119270.0,119260.0,0.78076085]
[1752683114620,0.81520184,119270.0,119260.0,0.78076085]
[1752683115828,0.64756804,119270.0,119260.0,0.78076085]
[1752683116028,0.81520194,119270.0,119260.0,0.78076085]
[1752683116929,0.81520194,119270.0,119260.0,0.85343416]
[1752683117926,0.61183804,119270.0,119260.0,0.85343416]
[1752683118131,0.77701194,119270.0,119260.0,0.85343416]
[1752683118531,0.60937804,119270.0,119260.0,0.85343416]
[1752683118729,0.77701194,119270.0,119260.0,0.85343416]
[1752683118935,0.77701194,119270.0,119260.0,0.91311464]
[1752683119131,4e-05,119280.0,119270.0,0.2546839]
[1752683119428,4e-05,119280.0,119270.0,0.91260437]
[1752683120635,0.00504,119300.0,119290.0,0.2013457]
[1752683120833,0.7650317,119300.0,119290.0,0.91660667]
[1752683121139,0.1751917,119300.0,119290.0,0.91660667]
[1752683121435,0.7675917,119300.0,119290.0,0.91660667]
[1752683121643,0.6,119300.0,119290.0,0.91660667]
[1752683121827,0.8034017,119300.0,119290.0,0.41836668]
[1752683122033,0.8377817,119300.0,119290.0,0.41836668]
[1752683122237,0.8377417,119300.0,119290.0,0.41836668]
[1752683122637,1.33598169,119300.0,119290.0,0.04483446]
[1752683122942,0.7401557,119290.0,119280.0,0.10069446]
[1752683123241,0.7401557,119290.0,119280.0,0.24183712]
[1752683123242,0.7403557,119290.0,119280.0,0.24183712]
[1752683123428,0.7403557,119290.0,119280.0,0.3015176]
[1752683124134,0.55857,119290.0,119280.0,0.93114759]
[1752683124335,0.2013057,119290.0,119280.0,0.93114759]
[1752683124532,0.8327157,119290.0,119280.0,0.1652878]
[1752683124837,1.49861969,119290.0,119280.0,0.05968048]
[1752683125037,0.2401698,119280.0,119270.0,0.04861]
[1752683125238,0.2401838,119270.0,119260.0,0.3585735]
[1752683125439,0.84963288,119270.0,119260.0,0.3583735]
[1752683126233,0.84963288,119270.0,119260.0,0.3738735]
[1752683126434,0.81058288,119270.0,119260.0,0.98800349]
[1752683126647,0.0002,119270.0,119260.0,0.98800349]
[1752683126944,0.0002,119270.0,119260.0,1.02193772]
[1752683127839,0.0002,119270.0,119260.0,0.91640289]
[1752683128040,0.1701936,119270.0,119260.0,0.91640289]
[1752683128542,0.2013336,119270.0,119260.0,0.89119286]
[1752683128746,0.2060036,119270.0,119260.0,0.99119286]
[1752683130145,0.00256,119270.0,119260.0,0.91640289]
[1752683130350,0.0002,119270.0,119260.0,0.91640289]
[1752683131348,0.0002,119270.0,119260.0,0.99119286]
[1752683132143,0.00256,119270.0,119260.0,0.99119286]
[1752683132348,0.0002,119270.0,119260.0,0.99119286]
[1752683134344,0.0002,119270.0,119260.0,0.91640289]
[1752683134549,0.0002,119270.0,119260.0,1.02193772]
[1752683135544,0.01842604,119290.0,119280.0,0.2546669]
[1752683135750,0.01842604,119290.0,119280.0,0.92987952]
[1752683135945,0.18602884,119290.0,119280.0,0.92987952]
[1752683136150,0.02078604,119290.0,119280.0,0.92987952]
[1752683137257,0.02078604,119290.0,119280.0,0.93087952]
[1752683137457,0.01842604,119290.0,119280.0,0.93087952]
[1752683139562,0.01842604,119290.0,119280.0,0.87102559]
[1752683140864,0.01842604,119290.0,119280.0,0.9308559]
[1752683141164,0.01842604,119290.0,119280.0,0.87102559]
[1752683141754,0.01842604,119290.0,119280.0,0.94584774]
[1752683143657,0.01842604,119290.0,119280.0,0.87102559]
[1752683146066,0.01842604,119290.0,119280.0,0.3727856]
[1752683146265,0.01842604,119290.0,119280.0,0.87102559]
[1752683146666,0.01842604,119290.0,119280.0,0.9457981]
[1752683148563,0.01842604,119290.0,119280.0,0.87102559]
[1752683148762,0.01842604,119290.0,119280.0,0.9757071]
[1752683149264,0.01842604,119290.0,119280.0,0.87102559]
[1752683150569,0.21698874,119290.0,119280.0,0.3475143]
[1752683150871,0.2329427,119290.0,119280.0,0.4475143]
[1752683151062,0.25156894,119290.0,119280.0,0.1798974]
[1752683151364,1.16747293,119290.0,119280.0,0.06081363]
[1752683151556,1.16923294,119290.0,119280.0,0.001]
[1752683151760,1.35076894,119290.0,119280.0,0.2327467]
[1752683151962,1.35076894,119290.0,119280.0,0.2524367]
[1752683151963,0.75872894,119290.0,119280.0,0.2524367]
[1752683152164,1.35076894,119290.0,119280.0,0.2524367]
[1752683152369,0.75872894,119290.0,119280.0,0.2524367]
[1752683152563,1.35076894,119290.0,119280.0,0.2524367]
[1752683152763,0.75872894,119290.0,119280.0,0.06513]
[1752683153066,0.1968289,119250.0,119240.0,0.01124221]
[1752683153264,0.181723,119240.0,119230.0,0.06354122]
[1752683153464,2.33880299,119240.0,119230.0,0.04644]
[1752683153671,2.33880299,119240.0,119230.0,0.02375]
[1752683153866,2.33880299,119240.0,119230.0,0.191437]
[1752683154062,0.181737,119230.0,119220.0,0.2424298]
[1752683154268,1.35789845,119230.0,119220.0,0.2424298]
[1752683154467,1.35789845,119230.0,119220.0,0.1677011]
[1752683154771,1.85789845,119230.0,119220.0,0.1677011]
[1752683155369,0.76761846,119230.0,119220.0,0.1914511]
[1752683155569,0.85969846,119230.0,119220.0,0.2188011]
[1752683155867,0.1817651,119210.0,119200.0,0.31787633]
[1752683156072,1.29092721,119210.0,119200.0,0.31787633]
[1752683156273,1.70870321,119210.0,119200.0,0.30382633]
[1752683156474,2.20870321,119210.0,119200.0,0.47155553]
[1752683156970,0.86838322,119210.0,119200.0,0.51799553]
[1752683157174,0.77863722,119210.0,119200.0,0.52265553]
[1752683158465,1.44477321,119210.0,119200.0,0.47155553]
[1752683158669,1.44477321,119210.0,119200.0,0.30382633]
[1752683159471,0.85257321,119210.0,119200.0,0.47155523]
[1752683159778,0.77875722,119210.0,119200.0,0.52265523]
[1752683160277,1.27699721,119210.0,119200.0,0.51799523]
[1752683160478,1.44477321,119210.0,119200.0,0.30382633]
[1752683160781,0.1677432,119190.0,119180.0,0.27118048]
[1752683160983,1.25826319,119190.0,119180.0,0.26652048]
[1752683161172,2.91766319,119190.0,119180.0,0.22458188]
[1752683161476,2.91766319,119190.0,119180.0,0.16775]
[1752683162080,0.1677572,119180.0,119170.0,0.06155651]
[1752683162273,0.66599719,119180.0,119170.0,0.17822781]
[1752683162480,0.83382119,119180.0,119170.0,0.2142113]
[1752683162674,0.1677854,119160.0,119150.0,0.29160386]
[1752683162878,1.25838539,119160.0,119150.0,0.0511]
[1752683163176,1.24838539,119160.0,119150.0,0.2142395]
[1752683163677,0.1577854,119160.0,119150.0,0.32478243]
[1752683163884,0.81267691,119170.0,119160.0,0.2142254]
[1752683164071,1.40503691,119170.0,119160.0,0.2142254]
[1752683164774,1.40503691,119170.0,119160.0,0.04644]
[1752683165077,0.1677854,119160.0,119150.0,0.22943113]
[1752683166080,0.1677854,119160.0,119150.0,0.82767112]
[1752683166281,0.27073001,119170.0,119160.0,0.3188854]
[1752683166482,0.86309001,119170.0,119160.0,0.3188854]
[1752683167475,0.77920171,119170.0,119160.0,0.3188854]
[1752683167676,0.01905961,119170.0,119160.0,0.3188854]
[1752683167875,0.77931091,119170.0,119160.0,0.3188854]
[1752683168083,0.84491726,119170.0,119160.0,0.2188854]
[1752683168585,0.84491726,119170.0,119160.0,0.3188854]
[1752683168785,0.84491726,119170.0,119160.0,0.2188854]
[1752683169383,0.01905961,119170.0,119160.0,0.81712539]
[1752683169786,0.61157961,119170.0,119160.0,0.81712539]
[1752683170980,0.01905961,119170.0,119160.0,0.81712539]
[1752683171174,0.61157961,119170.0,119160.0,0.81712539]
[1752683172183,0.61157961,119170.0,119160.0,1.11172539]
[1752683173578,1.05128355,119180.0,119170.0,0.1677713]
[1752683173784,0.1655977,119190.0,119180.0,0.2193372]
[1752683173984,0.7581177,119190.0,119180.0,0.81757719]
[1752683174174,0.59252,119190.0,119180.0,0.81757719]
[1752683174580,0.7602632,119190.0,119180.0,0.81757719]
[1752683174981,0.59252,119190.0,119180.0,0.88574576]
[1752683175287,0.1677432,119190.0,119180.0,0.88574576]
[1752683175489,0.7602632,119190.0,119180.0,0.88574576]
[1752683175786,0.59252,119190.0,119180.0,0.88574576]
[1752683175987,0.1677432,119190.0,119180.0,0.38750577]
[1752683176283,0.7602632,119190.0,119180.0,0.05158]
[1752683176486,0.7602632,119190.0,119180.0,0.2193372]
[1752683176876,0.7602632,119190.0,119180.0,0.05158]
[1752683177884,0.7602632,119190.0,119180.0,0.2193373]
[1752683178386,1.25850319,119190.0,119180.0,0.05158]
[1752683178582,0.1677573,119180.0,119170.0,0.31998922]
[1752683178787,0.66599729,119180.0,119170.0,0.3032276]
[1752683179181,0.66599729,119180.0,119170.0,0.32050198]
[1752683179386,0.66599729,119180.0,119170.0,0.23661788]
[1752683180692,0.1677573,119180.0,119170.0,0.33661788]
[1752683180989,0.7602773,119180.0,119170.0,0.33661788]
[1752683181186,0.1679573,119180.0,119170.0,0.33661788]
[1752683181387,0.7604373,119180.0,119170.0,0.33661788]
[1752683181789,0.7604373,119180.0,119170.0,0.23889788]
[1752683181988,0.7604373,119180.0,119170.0,0.25557788]
[1752683182190,0.7604373,119180.0,119170.0,0.35557788]
[1752683183188,0.7604373,119180.0,119170.0,0.25557788]
[1752683184490,1.25867729,119180.0,119170.0,0.08781438]
[1752683184696,1.75867729,119180.0,119170.0,0.001]
[1752683184891,1.67650129,119180.0,119170.0,0.001]
[1752683185093,2.17650129,119180.0,119170.0,0.001]
[1752683185889,2.19395976,119180.0,119170.0,0.001]
[1752683186091,1.60147976,119180.0,119170.0,0.001]
[1752683186391,0.66601129,119170.0,119160.0,0.04686]
[1752683186593,1.84366976,119170.0,119160.0,0.04666]
[1752683186789,0.6677854,119160.0,119150.0,0.0002]
[1752683187091,0.1677995,119150.0,119140.0,0.0002]
[1752683187294,0.1863979,119140.0,119130.0,0.3218877]
[1752683187592,1.27731789,119140.0,119130.0,0.3216877]
[1752683187992,1.44519789,119140.0,119130.0,0.2678277]
[1752683188299,1.44519789,119140.0,119120.0,0.14339352]
[1752683188300,0.1678277,119130.0,119120.0,0.35499392]
[1752683188490,0.1680277,119130.0,119120.0,0.45479392]
[1752683188992,0.0002,119130.0,119120.0,0.96377238]
[1752683189200,0.0002,119130.0,119120.0,0.52502181]
[1752683189392,0.59272,119130.0,119120.0,0.52502181]
[1752683189696,0.0002,119130.0,119120.0,1.09085751]
[1752683189886,0.0185843,119140.0,119130.0,0.3535577]
[1752683190089,0.0185843,119160.0,119150.0,0.37071593]
[1752683190289,0.6111043,119160.0,119150.0,0.83480592]
[1752683191296,0.7788897,119160.0,119150.0,0.83480592]
[1752683191595,0.7788897,119160.0,119150.0,0.83680592]
[1752683192891,0.7972997,119160.0,119150.0,0.07076643]
[1752683193092,1.29553969,119160.0,119150.0,0.04317643]
[1752683193497,1.29553969,119160.0,119150.0,0.33856593]
[1752683193498,0.7972997,119160.0,119150.0,0.33856593]
[1752683193897,0.7973797,119160.0,119150.0,0.33856593]
[1752683194590,0.7973797,119160.0,119150.0,0.33756593]
[1752683194787,0.7973397,119160.0,119150.0,0.23756593]
[1752683194991,0.7973797,119160.0,119150.0,0.33756593]
[1752683195194,0.7789697,119160.0,119150.0,0.83580592]
[1752683196000,0.7789697,119160.0,119150.0,0.33756593]
[1752683196899,0.7814697,119160.0,119150.0,0.86995592]
[1752683197099,0.7814697,119160.0,119150.0,0.37171593]
[1752683197399,0.7973297,119160.0,119150.0,0.37171593]
[1752683197595,0.2231797,119160.0,119150.0,0.10391643]
[1752683197795,0.8157397,119160.0,119150.0,0.26679593]
[1752683198801,0.8157397,119160.0,119150.0,0.06712643]
[1752683199000,1.81397969,119160.0,119150.0,0.01818643]
[1752683199202,1.81397969,119160.0,119150.0,0.18598593]
[1752683199397,1.79561969,119160.0,119150.0,0.18598593]
[1752683199699,1.79561969,119160.0,119150.0,0.01818643]
[1752683199999,1.79561969,119160.0,119150.0,0.001]
[1752683201407,1.86429277,119160.0,119150.0,0.001]
[1752683202807,1.27173277,119160.0,119150.0,0.1687995]
[1752683203002,1.36605278,119160.0,119150.0,0.1687995]
[1752683204602,1.36605278,119160.0,119150.0,0.001]
[1752683204902,0.79180278,119160.0,119150.0,0.2158595]
[1752683205102,1.38436278,119160.0,119150.0,0.2158595]
[1752683205604,1.38436278,119160.0,119150.0,0.04806]
[1752683205800,1.38436278,119160.0,119150.0,0.02417]
[1752683206502,1.88260277,119160.0,119150.0,0.001]
[1752683206702,1.88280277,119160.0,119150.0,0.001]
[1752683206906,1.90021531,119160.0,119150.0,0.001]
[1752683207201,1.29024277,119160.0,119150.0,0.2158595]
[1752683207407,0.7233297,119160.0,119150.0,0.2228095]
[1752683207610,0.1890597,119160.0,119150.0,0.85328949]
[1752683207902,0.0188243,119160.0,119150.0,0.85328949]
[1752683208208,1.14443331,119180.0,119170.0,0.2194613]
[1752683208400,0.22853194,119190.0,119180.0,0.3194472]
[1752683208601,0.77914384,119190.0,119180.0,0.883424]
[1752683208799,0.61140064,119190.0,119180.0,0.81768719]
[1752683209011,0.01884064,119190.0,119180.0,1.11228719]
[1752683209209,0.61140064,119190.0,119180.0,1.17233056]
[1752683209506,0.61140064,119190.0,119180.0,0.87773056]
[1752683209701,0.01884064,119190.0,119180.0,0.87773056]
[1752683209904,4e-05,119200.0,119190.0,0.33667361]
[1752683210105,0.59256,119200.0,119190.0,0.8349136]
[1752683210710,0.59256,119200.0,119190.0,0.84499497]
[1752683211104,0.59256,119200.0,119190.0,0.90503834]
[1752683211303,0.59256,119200.0,119190.0,0.90603834]
[1752683212305,0.59248,119200.0,119190.0,0.90603834]
[1752683213410,0.59248,119200.0,119190.0,1.20063834]
[1752683214210,0.7602091,119200.0,119190.0,1.20063834]
[1752683214413,0.59248,119200.0,119190.0,1.14059497]
[1752683214610,0.59248,119200.0,119190.0,1.20063834]
[1752683216105,0.59248,119200.0,119190.0,1.14059497]
[1752683216712,4e-05,119200.0,119190.0,1.14059497]
[1752683216909,0.5924,119200.0,119190.0,1.14059497]
[1752683217208,0.5924,119200.0,119190.0,1.20063834]
[1752683217414,0.5924,119200.0,119190.0,1.14059497]
[1752683218110,4e-05,119200.0,119190.0,1.14059497]
[1752683218617,0.01905783,119220.0,119210.0,0.253965]
[1752683218809,0.61133783,119220.0,119210.0,1.1641136]
[1752683219415,0.78148883,119220.0,119210.0,1.1641136]
[1752683219715,0.61578783,119220.0,119210.0,1.1641136]
[1752683220811,0.61325783,119220.0,119210.0,1.1641136]
[1752683221215,0.02105783,119220.0,119210.0,1.1641136]
[1752683221915,0.02350783,119220.0,119210.0,1.1641136]
[1752683222115,0.26029883,119220.0,119210.0,0.56587361]
[1752683222416,0.26029883,119220.0,119210.0,0.37127361]
[1752683222605,0.26029883,119220.0,119210.0,0.8695136]
[1752683222811,0.24671883,119220.0,119210.0,0.8695136]
[1752683223409,0.24671883,119220.0,119210.0,0.7695136]
[1752683223614,0.26029883,119220.0,119210.0,0.8695136]
[1752683223817,0.26029883,119220.0,119210.0,0.37127361]
[1752683224414,0.26029883,119220.0,119210.0,0.27127361]
[1752683225315,0.26029883,119220.0,119210.0,0.25069361]
[1752683225522,0.26049883,119220.0,119210.0,0.25089361]
[1752683225721,0.92650682,119220.0,119210.0,0.0002]
[1752683225917,0.2392691,119200.0,119190.0,0.02732178]
[1752683226115,1.32962909,119200.0,119190.0,0.02732178]
[1752683226314,1.32962909,119200.0,119190.0,0.01724041]
[1752683226724,1.29514909,119200.0,119190.0,0.01724041]
[1752683227309,0.7968691,119200.0,119190.0,0.23204361]
[1752683227514,0.7968691,119200.0,119190.0,0.23304361]
[1752683227718,0.7968691,119200.0,119190.0,0.23767361]
[1752683229417,0.8313491,119200.0,119190.0,0.23767361]
[1752683229816,0.8313491,119200.0,119190.0,0.23999361]
[1752683230124,0.2392973,119180.0,119170.0,0.2567626]
[1752683230324,0.8313773,119180.0,119170.0,0.3148213]
[1752683230518,1.32961729,119180.0,119170.0,0.27486467]
[1752683230716,0.8313773,119180.0,119170.0,0.27486467]
[1752683231117,0.8313773,119180.0,119170.0,0.22780467]
[1752683231421,1.3313773,119180.0,119170.0,0.22780467]
[1752683231823,1.3313773,119180.0,119170.0,0.27486467]
[1752683232127,1.3313773,119180.0,119170.0,0.25169467]
[1752683232420,0.7392973,119180.0,119170.0,0.37486467]
[1752683232726,0.8313773,119180.0,119170.0,0.38181467]
[1752683232926,0.2392973,119180.0,119170.0,0.91429466]
[1752683233123,0.8177973,119180.0,119170.0,0.91429466]
[1752683233720,0.84994954,119180.0,119170.0,0.2271096]
[1752683233921,1.84818953,119180.0,119170.0,0.0122883]
[1752683234319,1.84822953,119180.0,119170.0,0.1800602]
[1752683234524,1.34998954,119180.0,119170.0,0.1800602]
[1752683234921,0.75790954,119180.0,119170.0,0.1800602]
[1752683235124,0.74432954,119180.0,119170.0,0.3655802]
[1752683235323,0.81755954,119180.0,119170.0,0.86382019]
[1752683235619,0.22084954,119180.0,119170.0,0.86382019]
[1752683235819,0.61053,119180.0,119170.0,0.86382019]
[1752683236024,0.59212,119180.0,119170.0,0.82899019]
[1752683236219,0.7598778,119180.0,119170.0,0.82899019]
[1752683237516,0.59212,119180.0,119170.0,0.82899019]
[1752683238229,0.7598778,119180.0,119170.0,0.82899019]
[1752683238927,0.59212,119180.0,119170.0,0.82899019]
[1752683239131,0.7598778,119180.0,119170.0,0.82899019]
[1752683239319,0.7598778,119180.0,119170.0,0.3465702]
[1752683239518,0.7598778,119180.0,119170.0,0.86382019]
[1752683239725,0.59212,119180.0,119170.0,0.86382019]
[1752683239927,0.7598778,119180.0,119170.0,0.86382019]
[1752683240121,4e-05,119180.0,119170.0,0.86382019]
[1752683240328,0.59208,119180.0,119170.0,0.92386356]
[1752683240534,0.59208,119180.0,119170.0,0.86382019]
[1752683241434,0.59208,119180.0,119170.0,0.92378465]
[1752683242124,0.7598378,119180.0,119170.0,0.42554466]
[1752683242320,0.7598378,119180.0,119170.0,0.86382019]
[1752683242527,0.59228,119180.0,119170.0,0.86382019]
[1752683242930,0.59228,119180.0,119170.0,1.15842019]
[1752683244225,0.59228,119180.0,119170.0,1.21838465]
[1752683244427,0.59224,119180.0,119170.0,1.21838465]
[1752683246536,0.59224,119180.0,119170.0,0.72014466]
[1752683246737,0.59224,119180.0,119170.0,1.21838465]
[1752683249829,0.59224,119180.0,119170.0,1.15842019]
[1752683250034,0.00273167,119200.0,119190.0,0.2025738]
[1752683250335,0.59465167,119200.0,119190.0,0.85150379]
[1752683251142,0.59192,119200.0,119190.0,0.85150379]
[1752683251438,0.59192,119200.0,119190.0,0.86865946]
[1752683252040,0.59292,119200.0,119190.0,0.86865946]
[1752683252436,0.59292,119200.0,119190.0,0.92865516]
[1752683253141,0.59292,119200.0,119190.0,0.43041517]
[1752683253338,0.59521,119200.0,119190.0,0.43041517]
[1752683253735,0.59521,119200.0,119190.0,0.92865516]
[1752683254639,0.7943697,119200.0,119190.0,0.92865516]
[1752683254845,0.6628,119200.0,119190.0,0.27041947]
[1752683255041,0.64922,119200.0,119190.0,0.43041517]
[1752683255236,0.62556,119200.0,119190.0,0.92865516]
[1752683255445,0.59413,119200.0,119190.0,0.92865516]
[1752683256044,1.15992,119210.0,119200.0,0.2484397]
[1752683256239,1.9194356,119210.0,119200.0,0.85148969]
[1752683257039,0.01833,119210.0,119200.0,0.85148969]
[1752683257242,0.61013,119210.0,119200.0,0.91148539]
[1752683257441,0.61113,119210.0,119200.0,0.91148539]
[1752683258656,0.7788456,119210.0,119200.0,0.91148539]
[1752683259247,0.7942356,119210.0,119200.0,0.91148539]
[1752683260246,0.8314756,119210.0,119200.0,0.81148539]
[1752683260546,0.8314756,119210.0,119200.0,0.4132454]
[1752683260750,0.66376,119210.0,119200.0,0.91148539]
[1752683261143,0.8314756,119210.0,119200.0,0.91148539]
[1752683262050,0.66376,119210.0,119200.0,0.91148539]
[1752683262351,0.8314756,119210.0,119200.0,0.91148539]
[1752683265549,0.07196,119210.0,119200.0,0.91148539]
[1752683265854,0.62636,119210.0,119200.0,0.91148539]
[1752683266049,0.59493,119210.0,119200.0,0.91148539]
[1752683266357,0.03356,119230.0,119220.0,0.2549715]
[1752683266552,0.7928875,119230.0,119220.0,0.76987155]
[1752683266844,0.8300475,119230.0,119220.0,0.77007155]
[1752683267241,0.66236,119230.0,119220.0,0.77007155]
[1752683267440,0.8300475,119230.0,119220.0,0.77007155]
[1752683267638,0.8340475,119230.0,119220.0,0.77007155]
[1752683268150,0.8340475,119230.0,119220.0,0.83008144]
[1752683268648,0.8340475,119230.0,119220.0,0.33184145]
[1752683268853,0.8340475,119230.0,119220.0,0.27183156]
[1752683269047,0.8340475,119230.0,119220.0,0.24457145]
[1752683269444,0.8340475,119230.0,119220.0,0.18456156]
[1752683270948,0.8340475,119230.0,119220.0,0.24917156]
[1752683271250,0.85248505,119230.0,119220.0,0.23330156]
[1752683271650,0.85248505,119230.0,119220.0,0.20856156]
[1752683273145,0.85248505,119230.0,119220.0,0.23330156]
[1752683273346,0.85248505,119230.0,119220.0,0.27183156]
[1752683274053,0.85248505,119230.0,119220.0,0.77007155]
[1752683274250,0.05619755,119230.0,119220.0,0.77007155]
[1752683274450,0.64843755,119230.0,119220.0,0.87007155]
[1752683274655,0.63,119230.0,119220.0,0.87007155]
[1752683275156,0.7976875,119230.0,119220.0,0.87007155]
[1752683275554,0.7976875,119230.0,119220.0,0.37183156]
[1752683275555,0.8346475,119230.0,119220.0,0.37183156]
[1752683276256,0.8346475,119230.0,119220.0,0.87007155]
[1752683276458,0.8346475,119230.0,119220.0,0.93008144]
[1752683277154,0.8210675,119230.0,119220.0,0.43184145]
[1752683277365,0.8210675,119230.0,119220.0,0.93008144]
[1752683278061,0.65402,119230.0,119220.0,0.93008144]
[1752683278259,0.8217075,119230.0,119220.0,0.93008144]
[1752683278558,0.03776,119230.0,119220.0,0.87007155]
[1752683278763,0.59942,119230.0,119220.0,0.93008144]
[1752683279257,0.59942,119230.0,119220.0,0.87007155]
[1752683279458,0.59716,119230.0,119220.0,0.87007155]
[1752683280359,0.00424,119230.0,119220.0,0.94480025]
[1752683280663,0.00424,119230.0,119220.0,2.00151224]
[1752683282274,0.00424,119230.0,119220.0,1.92678354]
[1752683282570,0.00424,119230.0,119220.0,2.0016436]
[1752683282770,0.00124,119230.0,119220.0,1.92678354]
[1752683283267,4e-05,119250.0,119240.0,0.2549434]
[1752683283466,0.59452,119250.0,119240.0,1.22452047]
[1752683283672,4e-05,119250.0,119240.0,1.22452047]
[1752683283871,4e-05,119250.0,119240.0,2.72452047]
[1752683284072,4e-05,119250.0,119240.0,2.73951455]
[1752683284274,4e-05,119250.0,119240.0,2.6646505]
[1752683284573,0.00104,119250.0,119240.0,2.6646505]
[1752683285272,0.00104,119250.0,119240.0,2.73951455]
[1752683285671,0.00104,119250.0,119240.0,2.6646505]
[1752683285867,0.00104,119250.0,119240.0,2.16641051]
[1752683286071,0.2022194,119250.0,119240.0,2.73402861]
[1752683286269,0.03456,119250.0,119240.0,2.73402861]
[1752683287274,0.03456,119250.0,119240.0,2.43942861]
[1752683287973,0.03456,119250.0,119240.0,1.94118862]
[1752683288174,0.03456,119250.0,119240.0,2.43942861]
[1752683288876,0.2022194,119250.0,119240.0,1.94118862]
[1752683289081,0.2022194,119250.0,119240.0,2.43942861]
[1752683289268,0.03456,119250.0,119240.0,2.43942861]
[1752683290669,0.03456,119250.0,119240.0,2.50593483]
[1752683291771,0.03456,119250.0,119240.0,2.00769484]
[1752683292074,0.03456,119250.0,119240.0,2.50593483]
[1752683292479,0.0033,119250.0,119240.0,2.50593483]
[1752683292782,0.00104,119250.0,119240.0,2.50593483]
[1752683294681,0.1686996,119250.0,119240.0,2.50593483]
[1752683294872,0.1709596,119250.0,119240.0,2.50593483]
[1752683295074,0.0033,119250.0,119240.0,2.00769484]
[1752683295273,0.0033,119250.0,119240.0,2.50593483]
[1752683295676,0.2012396,119250.0,119240.0,2.00769484]
[1752683295981,0.2383296,119250.0,119240.0,1.90769484]
[1752683296477,0.2383296,119250.0,119240.0,1.78137588]
[1752683297074,0.2383296,119250.0,119240.0,0.07517228]
[1752683297280,0.75708883,119240.0,119230.0,0.2179177]
[1752683297476,1.35252883,119240.0,119230.0,0.26214251]
[1752683297682,1.35252883,119240.0,119230.0,0.8603825]
[1752683297683,0.83894883,119240.0,119230.0,0.8603825]
[1752683297886,0.81543883,119240.0,119230.0,0.8603825]
[1752683298580,0.81543883,119240.0,119230.0,0.7603825]
[1752683298781,0.85252883,119240.0,119230.0,0.17726251]
[1752683298986,0.85252883,119240.0,119230.0,0.05524481]
[1752683299188,1.02026483,119240.0,119230.0,0.05524481]
[1752683299385,1.02026483,119240.0,119230.0,0.20040251]
[1752683299578,1.02026483,119240.0,119230.0,0.02314]